Cogmind - Beta 14 @@@ ROGUE MODE // 2024.10.20 @ 01:55:20 Player: WazdakkaGutsmek Result: Self-destructed Performance ------------- Evolutions (2) 1000 Regions Visited (5) 1000 Robots Destroyed (0) 0 Value Destroyed (0) 0 Prototype IDs (24) 480 Alien Tech Used (0) 0 Bonus (570) 570 TOTAL SCORE: 3050 Bonus ------- Pacifist 270 Aligned with FarCom 300 Cogmind --------- Core Integrity 517/550 Matter 284/300 Energy 125/125 System Corruption 0% Temperature Cool (24) Movement Walking (120) Location -8/Materials Parts ------- > --- POWER (1) -------- Light Ion Engine > --- PROPULSION (4) --- Aluminum Leg Aluminum Leg > --- UTILITY (4) ------ Small Storage Unit Experimental Sensor Array Improved Signal Interpreter > --- WEAPON (2) ------- Assault Rifle > --- INVENTORY (8) ---- Ion Engine Light Treads Light Treads Wheel Compact Wheel High-capacity Matter Pod (67) Small Laser Peak State ------------ > --- POWER ------------ Light Ion Engine > --- PROPULSION ------- Aluminum Leg Aluminum Leg > --- UTILITY ---------- Cooling System Small Storage Unit Experimental Sensor Array Improved Signal Interpreter > --- WEAPON ----------- Beam Rifle Assault Rifle > --- INVENTORY -------- Ion Engine Light Treads Light Treads Wheel Compact Wheel High-capacity Matter Pod Small Laser [Rating: 21] Favorites ----------- Power Light Ion Engine Engine Light Ion Engine Propulsion Aluminum Leg Leg Aluminum Leg Utility Small Storage Unit Device Cooling System Storage Small Storage Unit Processor Improved Signal Interpreter Weapon Assault Rifle Energy Gun EM Pulse Gun Ballistic Gun Assault Rifle Build | -11 -10 -10 -10 -9 -8 ------- Run | Yrd Mat Min Exi Min Mat Slots Evolved 4 | . . . . . 4 Power . | . . . . . . Propulsion 2 | . . . . . 2 Utility 2 | . . . . . 2 Weapon . | . . . . . . Parts Attached 4 | . . . . 2 2 Power . | . . . . . . Engine . | . . . . . . Core . | . . . . . . Reactor . | . . . . . . Propulsion . | . . . . . . Treads . | . . . . . . Leg . | . . . . . . Wheel . | . . . . . . Hover . | . . . . . . Flight . | . . . . . . Utility 3 | . . . . 1 2 Device 2 | . . . . 1 1 Storage . | . . . . . . Processor 1 | . . . . . 1 Hackware . | . . . . . . Protection . | . . . . . . Artifact . | . . . . . . Weapon 1 | . . . . 1 . Energy Gun 1 | . . . . 1 . Energy Cannon . | . . . . . . Ballistic Gun . | . . . . . . Ballistic Cannon . | . . . . . . Launcher . | . . . . . . Special Weapon . | . . . . . . Impact Weapon . | . . . . . . Slashing Weapon . | . . . . . . Piercing Weapon . | . . . . . . Special Melee Weapon . | . . . . . . Unidentified Prototypes 1 | . . . . . 1 Parts Lost 2 | . . . . . 2 Power . | . . . . . . Propulsion . | . . . . . . Utility 1 | . . . . . 1 Weapon 1 | . . . . . 1 Highest Loss Streak 2 | . . . . . 2 To Critical Strikes . | . . . . . . Average Slot Usage (%) 84 | . 85 85 85 90 69 Engine 13 | . 14 14 14 14 9 Leg 26 | . 28 28 28 28 18 Device 2 | . . . . 6 12 Storage 13 | . 14 14 14 14 9 Energy Gun 13 | . 14 14 14 13 8 Ballistic Gun 13 | . 14 14 14 14 9 Peak Build Rating 21 | . 6 7 7 10 21 Average Rating 8 | . 6 6 7 8 14 On Entrance 7 | 6 6 6 7 7 10 Naked Turns . | . . . . . . Heaviest Build 16 | 12 12 12 12 15 16 Greatest Support 20 | 20 20 20 20 20 20 Greatest Overweight (x) . | . . . . . . Average Overweight (x) . | . . . . . . Largest Inventory Capacity 8 | . 8 8 8 8 8 Average Capacity 8 | . 8 8 8 8 8 Most Carried 8 | . 7 8 8 8 8 Average Carried 7 | . 6 7 8 8 7 Final Capacity 8 | 8 8 8 8 8 8 Final Carried 8 | 6 7 8 8 8 7 Class Distribution -------------------- 96% | Mutant 3% | Skirmisher Dominant Class ---------------- Mutant | -10/Materials Mutant | -10/Mines Mutant | -10/Exiles Mutant | -9/Mines Mutant | -8/Materials Resources | -11 -10 -10 -10 -9 -8 ----------- Run | Yrd Mat Min Exi Min Mat Matter Collected 297 | 200 . . . 97 . Remotely . | . . . . . . Salvage Created . | . . . . . . Parts . | . . . . . . Haulers Intercepted . | . . . . . . Recyclers Shooed . | . . . . . . Parts Field Recycled . | . . . . . . Retrieved Matter . | . . . . . . Parts Self-Destructed . | . . . . . . Prevented . | . . . . . . Kills | -11 -10 -10 -10 -9 -8 ------- Run | Yrd Mat Min Exi Min Mat Combat Hostiles Destroyed . | . . . . . . Classes Destroyed . | . . . . . . Best Kill Streak . | . . . . . . Combat Bots Only . | . . . . . . Max Kills in Single Turn . | . . . . . . Gunslinging . | . . . . . . Exploded . | . . . . . . Melee . | . . . . . . Uniques/NPCs Destroyed . | . . . . . . Combat | -11 -10 -10 -10 -9 -8 -------- Run | Yrd Mat Min Exi Min Mat Hostile Shots Fired 14 | . 4 . . . 10 Missed 3 | . 3 . . . . Damage Taken 205 | . 7 . . . 198 Core 33 | . . . . . 33 Absorbed by Shields . | . . . . . . Core Remaining (%) 100 | 100 . . . 100 . Volleys Fired 2 | . . . . . 2 Largest 2 | . . . . . 2 Hottest 76 | . . . . . 76 Shots Fired 4 | . . . . . 4 Gun 4 | . . . . . 4 Cannon . | . . . . . . Launcher . | . . . . . . Special . | . . . . . . Kinetic 2 | . . . . . 2 Thermal 2 | . . . . . 2 Explosive . | . . . . . . Electromagnetic . | . . . . . . Robot Hit Streak 4 | . . . . . 4 Robot Miss Streak . | . . . . . . Penetration Max . | . . . . . . Secondary Targets . | . . . . . . Shots Hit Robots 4 | . . . . . 4 Core Hits 1 | . . . . . 1 Critical Kills . | . . . . . . Critical Parts Destroyed . | . . . . . . Critical Strikes . | . . . . . . Melee Attacks . | . . . . . . Impact . | . . . . . . Slashing . | . . . . . . Piercing . | . . . . . . Sneak Attacks . | . . . . . . Combat Hostiles . | . . . . . . Follow-up Attacks . | . . . . . . Damage Inflicted 57 | . . . . . 57 Guns 57 | . . . . . 57 Cannons . | . . . . . . Explosions . | . . . . . . Melee . | . . . . . . Ramming . | . . . . . . Kinetic 27 | . . . . . 27 Thermal 30 | . . . . . 30 Explosive . | . . . . . . Electromagnetic . | . . . . . . Impact . | . . . . . . Slashing . | . . . . . . Piercing . | . . . . . . Highest Corruption . | . . . . . . Average Corruption . | . . . . . . Corruption Purged . | . . . . . . Corruption Blocked . | . . . . . . Overload Shots . | . . . . . . Overflow Damage . | . . . . . . Projectiles . | . . . . . . Explosions . | . . . . . . Melee . | . . . . . . Knockbacks . | . . . . . . Impact . | . . . . . . Kinetic . | . . . . . . Secondary . | . . . . . . Self-Inflicted Damage . | . . . . . . Shots . | . . . . . . Rammed . | . . . . . . Targets Rammed . | . . . . . . Kicked . | . . . . . . Crushed . | . . . . . . Highest Temperature 24 | . . . . . 24 Average Temperature 16 | . . . . . 16 Received Heat Transfer 63 | . . . . . 63 Siege Activations . | . . . . . . Robots Corrupted . | . . . . . . Combat Hostiles . | . . . . . . Parts Fried . | . . . . . . Impact Corruptions . | . . . . . . Robots Melted . | . . . . . . Combat Hostiles . | . . . . . . Parts Melted . | . . . . . . Heat Transferred 74 | . . . . . 74 Parts Sabotaged . | . . . . . . Parts Stolen . | . . . . . . Parts Stripped . | . . . . . . Power Chain Reactions . | . . . . . . Alert | -11 -10 -10 -10 -9 -8 ------- Run | Yrd Mat Min Exi Min Mat Peak Influence . | . . . . . . Initial . | . . . . . . Average . | . . . . . . Maximum Alert Level . | . . . . . . Low Security (%) 100 | . 100 100 . 100 100 Level 1 . | . . . . . . Level 2 . | . . . . . . Level 3 . | . . . . . . Level 4 . | . . . . . . Level 5 . | . . . . . . High Security . | . . . . . . Max Security . | . . . . . . Squads Dispatched 1 | . 1 . . . . Investigation . | . . . . . . Extermination . | . . . . . . Reinforcement 1 | . 1 . . . . Assault . | . . . . . . Garrison . | . . . . . . Intercept . | . . . . . . Searches Triggered . | . . . . . . Construction Impeded . | . . . . . . Haulers Reinforced . | . . . . . . Active Scanning Responses . | . . . . . . Cargo Convoy Interrupts . | . . . . . . Stealth | -11 -10 -10 -10 -9 -8 --------- Run | Yrd Mat Min Exi Min Mat Distress Signals 1 | . 1 . . . . Communications Jammed . | . . . . . . Distress Signals . | . . . . . . Times Spotted 6 | . 3 . . . 3 Peak Tracking Total 8 | . 8 . . . 3 Tactical Retreats . | . . . . . . Traps | -11 -10 -10 -10 -9 -8 ------- Run | Yrd Mat Min Exi Min Mat Traps Triggered . | . . . . . . Indirectly . | . . . . . . Trap Hack Attempts . | . . . . . . Triggered . | . . . . . . Disarmed . | . . . . . . Reprogrammed . | . . . . . . Reused . | . . . . . . Traps Extracted . | . . . . . . Installed . | . . . . . . Triggered . | . . . . . . Machines | -11 -10 -10 -10 -9 -8 ---------- Run | Yrd Mat Min Exi Min Mat Machines Disabled . | . . . . . . Max in Single Turn . | . . . . . . Machines Repaired . | . . . . . . Machines Dismantled . | . . . . . . Machines Sabotaged . | . . . . . . Overloaded Fab Kills . | . . . . . . Hacking | -11 -10 -10 -10 -9 -8 --------- Run | Yrd Mat Min Exi Min Mat Machines Accessed 1 | . . . 1 . . Terminals . | . . . . . . Fabricators . | . . . . . . Repair Stations . | . . . . . . Recycling Units . | . . . . . . Scanalyzers . | . . . . . . Garrison Access . | . . . . . . Total Hacks 1 | . . . 1 . . Successful 1 | . . . 1 . . Failed . | . . . . . . Catastrophic . | . . . . . . Database Lockouts . | . . . . . . Manual 1 | . . . 1 . . Terminals . | . . . . . . Fabricators . | . . . . . . Repair Stations . | . . . . . . Recycling Units . | . . . . . . Scanalyzers . | . . . . . . Garrison Access . | . . . . . . Terminal Hacks 1 | . . . 1 . . Derelict Proto ID Bank 1 | . . . 1 . . Fabricator Hacks . | . . . . . . Repair Station Hacks . | . . . . . . Recycling Unit Hacks . | . . . . . . Scanalyzer . | . . . . . . Garrison Access Hacks . | . . . . . . Unauthorized Hacks . | . . . . . . Terminals . | . . . . . . Fabricators . | . . . . . . Repair Stations . | . . . . . . Recycling Units . | . . . . . . Scanalyzers . | . . . . . . Garrison Access . | . . . . . . Data Cores Recovered . | . . . . . . Used . | . . . . . . Hacking Detections . | . . . . . . Full Trace Events . | . . . . . . Feedback Events . | . . . . . . Feedback Blocked . | . . . . . . Robot Schematics Acquired . | . . . . . . Robots Built . | . . . . . . Authchips . | . . . . . . Time . | . . . . . . Total Robot Build Rating . | . . . . . . Part Schematics Acquired . | . . . . . . Parts Built . | . . . . . . Authchips . | . . . . . . Time . | . . . . . . Total Part Build Rating . | . . . . . . Parts Repaired . | . . . . . . Time . | . . . . . . Parts Recycled . | . . . . . . Recycled Matter . | . . . . . . Retrieved Matter . | . . . . . . Retrieved Components . | . . . . . . Parts Scanalyzed . | . . . . . . Part Schematics Acquired . | . . . . . . Parts Damaged . | . . . . . . Bothacking | -11 -10 -10 -10 -9 -8 ------------ Run | Yrd Mat Min Exi Min Mat Used RIF Installer . | . . . . . . Robots Hacked . | . . . . . . Non-combat . | . . . . . . Combat . | . . . . . . Robot Hacks Applied . | . . . . . . Relay Couplers Released . | . . . . . . Fabnet Peak Effective % . | . . . . . . Robots Rewired . | . . . . . . Allies Hacked . | . . . . . . Hacks Repelled . | . . . . . . Allies | -11 -10 -10 -10 -9 -8 -------- Run | Yrd Mat Min Exi Min Mat Total Allies . | . . . . . . Largest Group . | . . . . . . Highest-Rated Group . | . . . . . . Highest-Rated Ally . | . . . . . . Total Orders . | . . . . . . Ally Attacks . | . . . . . . Total Damage . | . . . . . . Kills . | . . . . . . Allies Corrupted . | . . . . . . Allies Melted . | . . . . . . Intel | -11 -10 -10 -10 -9 -8 ------- Run | Yrd Mat Min Exi Min Mat Robot Analysis Total . | . . . . . . Derelict Logs Recovered 1 | . . 1 . . . Drone Launches . | . . . . . . Drone Recoveries . | . . . . . . Exploration | -11 -10 -10 -10 -9 -8 ------------- Run | Yrd Mat Min Exi Min Mat Turns Passed 749 | . 52 179 294 140 84 Spaces Moved 593 | 1 43 149 246 111 43 Core . | . . . . . . Treads . | . . . . . . Legs 593 | 1 43 149 246 111 43 Wheels . | . . . . . . Hover . | . . . . . . Flight . | . . . . . . Fastest Speed 120 | 120 120 120 120 120 120 Average Speed 120 | 120 120 120 120 120 120 Slowest Speed 120 | 120 120 120 120 120 120 Overloaded Moves . | . . . . . . Propulsion Burnouts . | . . . . . . Robots Hopped . | . . . . . . Cave-ins Triggered . | . . . . . . Time Travels 1 | . . . 1 . . Exploration Rate (%) 26 | 1 17 37 59 37 7 Regions Visited 5 Branch Regions 3 Pre-discovered Areas 1 | . . 1 . . . Known Exits Taken . | . . . . . . Unknown Exits Taken 5 | 1 1 1 1 1 . Scrap Searched 2 | . . . . 2 . Spaces Dug . | . . . . . . Terrain Destroyed . | . . . . . . Melee . | . . . . . . Projectile . | . . . . . . AOE . | . . . . . . Terrain Rammed . | . . . . . . Walls Destroyed . | . . . . . . Machines Disabled . | . . . . . . Actions | -11 -10 -10 -10 -9 -8 --------- Run | Yrd Mat Min Exi Min Mat Total 624 | . 43 149 245 117 70 Wait 27 | . . . . 4 23 Move 588 | . 42 148 245 110 43 Hop . | . . . . . . Pick Up 2 | . 1 1 . . . Fast Attach 3 | . . . . 2 1 Attach 1 | . . . . . 1 Detach . | . . . . . . Swap . | . . . . . . Drop 1 | . . . . 1 . Fire 2 | . . . . . 2 Melee . | . . . . . . Ram . | . . . . . . Kick . | . . . . . . Crush . | . . . . . . Escape Stasis . | . . . . . . Rewire . | . . . . . . Trap . | . . . . . . Miscellaneous . | . . . . . . Route ------- -11/Scrapyard -10/Materials -10/Mines -10/Exiles -9/Mines -8/Materials History --------- Turn | Location | Event 1 | -11/Scrapyard | Discovered new exit (range 0) 1 | -11/Scrapyard | Entered Materials 43 | -10/Materials | Discovered new exit (range 9) 53 | -10/Materials | Entered Mines 62 | -10/Mines | Met a Derelict bent on vengeance 69 | -10/Mines | Found a damaged Exp. Sensor Array with a note attached 71 | -10/Mines | Found Prototype Device 219 | -10/Mines | Learned location of Zion (-7) 226 | -10/Mines | Deemed a non-threat by the Exiles lab entrance 227 | -10/Mines | Discovered new exit (range 5) 232 | -10/Mines | Entered Exiles 261 | -10/Exiles | Met 8R-AWN 282 | -10/Exiles | Met EX-HEX 305 | -10/Exiles | Build established: Mutant 314 | -10/Exiles | Met EX-BIN 328 | -10/Exiles | Aligned with FarCom system 330 | -10/Exiles | Given EX-Vault access code 358 | -10/Exiles | Opened EX-Vault 367 | -10/Exiles | Found Chronowheel 367 | -10/Exiles | Activated Chronowheel 367 | -10/Exiles | Spacetime reconverged on an earlier point 392 | -10/Exiles | Warned to stay clear of 0b10 Research branches 474 | -10/Exiles | Met EX-DEC 513 | -10/Exiles | Discovered new exit (range 14) 526 | -10/Exiles | Entered Mines 649 | -9/Mines | Discovered new exit (range 7) 666 | -9/Mines | Entered Materials 666 | -8/Materials | Evolved 4 slots: Propulsion x2, Utility x2 712 | -8/Materials | Identified Exp. Sensor Array 750 | -8/Materials | Self-destructed Last Messages --------------- 00611_ T-07 Excavator is excavating. 00643_ Searching scrap... 00643_ Found Welding Torch. 00643_ Found Med. Storage Unit. 00643_ Found Spread Laser. 00643_ Found 43 Matter. 00644_ Acquired 43 matter. 00649_ EXIT=FOUND PARAMETERS=PROPULSION+2,UTILITY+2 LOCATION=UNKNOWN GOAL=ESCAPE 00666_ Receiving FarCom transmissions... 00711_ Acquired Imp. Signal Interpreter. 00712_ Identified Exp. Sensor Array. 00743_ C-30 ARC bursts open, deploying its payload. 00743_ L-31 Rogue unfolds itself. 00743_ G-47 Trooper unfolds itself. 00747_ Cooling System destroyed. 00748_ Beam Rifle destroyed. Map ----- +----------------------------------------------------+ | | | | | | | | | ?????????????????????????????????????????????????? | | ?????????????????????????????????????????????????? | | ?????????????????????????????????????????????????? | | ?????????????????????????????????????????????????? | | ??????????????????########???????????????????????? | | ??????????????????# #???????????????????????? | | ??????????????????# #???????????????????????? | | ????????#####?????#""" #???????????????????????? | | ????????# #?????#""" #???????????????????????? | | ????????# #?????#""" #???????????????????????? | | ????????# #??????? ?????????ss?????????????? | | ????????# ##########+###########s??????????????? | | ????????# #???????????????? | | ######### +???????????????? | | #???????????????? | | ###############+######+####### #???????????????? | | ????????????? ?# #???? #???????????????? | | ??????????? #""" #??????#???????????????? | | ?????????# #""" u#??????????????????????? | | ?????????# #""" #### #???????????????? | | ?????????# # ggl% #???????????????? | | ?????????# # @#### #???????????????? | | ?????????# ########??????????????????????? | | ?????????# #?????????????????????????????? | | ?????????###########?????????????????????????????? | | ?????????????????????????????????????????????????? | | ?????????????????????????????????????????????????? | | ?????????????Y???????????????????????????????????? | | ???????????????????w????o????????????????????????? | | ?????????????????????????????????????????????????? | | ?????????????????????????????????????????????????? | | ?????????????????????????????????????????????????? | | ?????????????????????????????????????????????????? | | ?????????????????????????????????????????????????? | | ?????????????????????????????????????????????????? | | ?????????????????????????????????????????????????? | | ?????????????????????????????????????????????????? | | ?????????????????????????????????????????????????? | | ?????????????????????????????????????????????????? | | ?????????????????????????????????????????????????? | | ?????????????????????????????????????????????????? | | ?????????????????????????????????????????????????? | | ?????????????????????????????????????????????????? | | ?????????????????????????????????????????????????? | | ?????????????????????????????????????????????????? | | ?????????????????????????????????????????????????? | +----------------------------------------------------+ Best States ------------- Heat Dissipation 53 Energy Generation 10 Energy Capacity 125 Matter Stores 300 Matter Capacity 300 Sight Range 16 Robot Scan Range 20 Terrain Scan Density 10 Evasion (%) 55 Item Schematics ----------------- None Robot Schematics ------------------ None Fabricated ------------ Nothing Alien Tech Used ----------------- None Achievements -------------- None Challenges ------------ None Game ------ Seed PoweredAccelerationAxe Manual? 0 Play Time 00:05:13 Cumulative 44.3 hours Start 2024.10.19 @ 22:54:55 End 2024.10.20 @ 01:55:20 Sessions 3 Manual Loads 0 Difficulty Rogue Special Mode None Game No. 48 Rogue 30 Adventurer 16 Explorer 2 Win Type - Total 1 Types 1/0/0/0/0/0/0/0/0 Lore% 13 Gallery% 37 Achievement% 33 Wizard Run 0 Options --------- Layout 2 ASCII 0 Keyboard 0 Movement Mouse Keybinds 1 Fullscreen 2 Font 24/Terminus Map View 50x44 Zoom Use 0% Tactical HUD 1 Map Filters NONE Filters NONE Steam X RUN: 035a0517-3ab2-406e-a0f6-f4e4067b453c